bitfinex/quotes_SOLUSD_20250506
["timestamp","ask_amount","ask_price","bid_price","bid_amount"]
[1746491519785,152.83727243,146.79,146.76,20.09365313]
[1746491519994,14.33727243,146.78,146.76,20.09365313]
[1746491520892,152.83727243,146.79,146.76,20.09365313]
[1746491523098,14.33727243,146.78,146.76,20.09365313]
[1746491527580,14.33727243,146.78,146.76,13.28]
[1746491528502,152.83727243,146.79,146.76,20.09378753]
[1746491539608,152.83727243,146.79,146.76,6.81378753]
[1746491539909,147.67251668,146.79,146.76,6.81378753]
[1746491540909,9.17251668,146.77,146.75,13.28]
[1746491541117,9.17251668,146.76,146.75,13.28]
[1746491541800,14.33788754,146.76,146.75,13.28]
[1746491546919,39.9435437,146.76,146.75,13.28]
[1746491547121,39.9435437,146.76,146.71,6.81603862]
[1746491547122,18.64964886,146.75,146.71,20.09603862]
[1746491547314,152.83788754,146.74,146.71,20.09603862]
[1746491547616,14.33788754,146.73,146.71,13.28]
[1746491550126,171.62969797,146.72,146.68,234.34]
[1746491550308,14.33788754,146.69,146.68,234.34]
[1746491550511,14.33788754,146.7,146.67,13.28]
[1746491553230,14.33788754,146.69,146.67,13.28]
[1746491553438,14.33788754,146.7,146.67,13.28]
[1746491554320,14.33788754,146.69,146.67,13.28]
[1746491554515,14.33788754,146.68,146.67,13.28]
[1746491556405,47.15544957,146.68,146.67,13.28]
[1746491556603,40.33788754,146.68,146.67,13.28]
[1746491560426,65.94726,146.68,146.67,13.28]
[1746491560633,65.94726,146.68,146.63,13.28]
[1746491560823,152.83788754,146.67,146.63,13.28]
[1746491561011,152.83788754,146.67,146.63,20.09985625]
[1746491562032,152.83788754,146.67,146.63,34.43774379]
[1746491563620,14.33788754,146.66,146.63,13.28]
[1746491563827,14.33788754,146.64,146.63,13.28]
[1746491564030,18.79181043,146.63,146.59,247.66]
[1746491564224,152.83788754,146.62,146.59,247.66]
[1746491565230,14.33788754,146.61,146.59,247.66]
[1746491565540,152.83788754,146.62,146.59,247.66]
[1746491566846,152.83788754,146.62,146.59,254.48173907]
[1746491567142,152.83788754,146.62,146.59,247.66]
[1746491567531,14.33788754,146.6,146.59,13.28]
[1746491567731,14.33788754,146.6,146.55,6.82357359]
[1746491567732,33.12969797,146.6,146.55,6.82357359]
[1746491567915,14.33788754,146.58,146.56,13.28]
[1746491569228,171.62969797,146.57,146.56,13.28]
[1746491569818,171.62969797,146.57,146.53,27.61788754]
[1746491570039,138.5,146.56,146.53,34.44240739]
[1746491570816,138.5,146.56,146.53,20.10451985]
[1746491571018,152.83788754,146.56,146.53,13.28]
[1746491571221,14.33788754,146.55,146.53,13.28]
[1746491571617,20.68268754,146.55,146.51,21.16325738]
[1746491571825,14.33788754,146.52,146.49,20.10598602]
[1746491573539,138.5,146.54,146.51,14.33788754]
[1746491574129,138.5,146.54,146.49,37.17199735]
[1746491574447,138.5,146.54,146.52,14.33788754]
[1746491574622,138.5,146.54,146.53,14.33788754]
[1746491575242,138.5,146.54,146.53,21.16242858]
[1746491575637,138.5,146.54,146.53,6.82454104]
[1746491578547,138.5,146.54,146.53,21.16242858]
[1746491580442,164.5,146.57,146.53,38.2237812]
[1746491580756,164.5,146.57,146.54,27.63788754]
[1746491580960,138.5,146.57,146.56,14.33788754]
[1746491581146,138.5,146.57,146.55,14.33788754]
[1746491581348,14.33788754,146.56,146.54,13.3]
[1746491582447,14.33788754,146.55,146.54,13.3]
[1746491583857,14.33788754,146.55,146.54,20.12407533]
[1746491586064,14.33788754,146.56,146.54,20.12407533]
[1746491586277,138.5,146.57,146.54,34.46196287]
[1746491586434,138.5,146.57,146.55,14.33788754]
[1746491586846,138.5,146.57,146.54,34.46196287]
[1746491587048,152.83788754,146.57,146.54,20.12407533]
[1746491587959,138.5,146.57,146.54,20.12407533]
[1746491589049,138.5,146.57,146.54,34.46196287]
[1746491592153,138.5,146.57,146.56,6.8231441]
[1746491592355,138.5,146.57,146.56,21.16103164]
[1746491596666,138.5,146.61,146.56,21.16103164]
[1746491596972,152.83788754,146.61,146.57,14.33788754]
[1746491597669,138.5,146.61,146.58,21.16010066]
[1746491599169,152.83788754,146.61,146.58,6.82221312]
[1746491600272,14.33788754,146.6,146.57,6.82248288]
[1746491600462,14.33788754,146.59,146.55,21.16149722]
[1746491600655,138.5,146.61,146.58,14.33788754]
[1746491600976,138.5,146.61,146.59,14.33788754]
[1746491601166,138.5,146.61,146.59,27.63788754]
[1746491601775,138.5,146.61,146.6,6.8212824]
[1746491602674,14.33788754,146.64,146.6,21.15916994]
[1746491602880,26.0,146.64,146.61,14.33788754]
[1746491603946,26.0,146.64,146.63,6.81988678]
[1746491604154,138.5,146.65,146.63,21.15777432]
[1746491604560,138.5,146.65,146.63,6.81988678]
[1746491612661,26.0,146.67,146.64,13.28]
[1746491612881,152.83788754,146.68,146.64,27.61788754]
[1746491613982,138.5,146.68,146.65,14.33788754]
[1746491614455,138.5,146.68,146.65,21.15681148]
[1746491615079,138.5,146.68,146.64,20.09925735]
[1746491615080,14.33788754,146.67,146.64,20.09925735]
[1746491618989,14.33788754,146.67,146.64,13.28]
[1746491619576,14.33788754,146.67,146.64,20.09942111]
[1746491623092,152.83788754,146.68,146.64,34.43730865]
[1746491623692,138.5,146.68,146.65,14.33788754]
[1746491623890,138.5,146.68,146.66,14.33788754]
[1746491624675,138.5,146.68,146.65,14.33788754]
[1746491625184,138.5,146.68,146.66,6.81849174]
[1746491636495,138.5,146.68,146.65,14.33788754]
[1746491636704,152.83788754,146.68,146.64,27.61788754]
[1746491637598,152.83788754,146.68,146.64,34.43714231]
[1746491640213,138.5,146.68,146.64,34.43714231]
[1746491642607,138.5,146.68,146.66,14.33788754]
[1746491644516,138.5,146.68,146.66,21.15618432]
[1746491647622,138.5,146.68,146.66,34.43618432]
[1746491648917,138.5,146.68,146.66,20.09829678]
[1746491651118,138.5,146.68,146.66,29.28254114]
[1746491654305,59.55359174,146.72,146.67,9.18424436]
[1746491654306,138.5,146.71,146.67,9.18424436]
[1746491654499,147.68424436,146.71,146.67,9.18424436]
[1746491655830,138.5,146.71,146.67,16.00214721]
[1746491656001,147.68424436,146.71,146.67,16.00214721]
[1746491656310,138.5,146.71,146.68,9.18424436]
[1746491656929,138.5,146.71,146.69,9.18424436]
[1746491657126,138.5,146.71,146.68,9.18424436]
[1746491657811,138.5,146.71,146.69,6.81709727]
[1746491658629,9.18424436,146.7,146.66,13.28]
[1746491658817,9.18424436,146.69,146.66,20.09837519]
[1746491659023,9.18424436,146.68,146.66,13.28]
[1746491659521,20.34831043,146.69,146.66,13.28]
[1746491659739,14.3558331,146.67,146.66,13.28]
[1746491660418,39.96567039,146.67,146.66,13.28]
[1746491660599,46.37637039,146.67,146.62,13.28]
[1746491660796,152.8558331,146.66,146.62,13.28]
[1746491661225,14.3558331,146.65,146.62,13.28]
[1746491662920,14.3558331,146.63,146.62,13.28]
[1746491664807,21.17571988,146.63,146.62,13.28]
[1746491665420,39.96753031,146.63,146.62,13.28]
[1746491670131,33.14764353,146.63,146.62,13.28]
[1746491670846,26.0,146.63,146.62,13.28]
[1746491677436,40.3558331,146.63,146.62,13.28]
[1746491679222,65.96753031,146.63,146.62,13.28]
[1746491679423,65.96753031,146.63,146.58,34.45799994]
[1746491679624,14.3558331,146.62,146.58,34.45799994]
[1746491680041,14.3558331,146.6,146.58,13.28]
[1746491680918,20.7960331,146.61,146.58,13.28]
[1746491682142,152.8558331,146.62,146.58,34.45791323]
[1746491685937,14.3558331,146.6,146.58,13.28]
[1746491686843,33.14764353,146.61,146.58,13.28]
[1746491691337,138.5,146.6,146.58,13.28]
[1746491692333,138.5,146.6,146.58,27.6358331]
[1746491693350,138.5,146.6,146.58,34.45792559]
[1746491693647,138.5,146.6,146.59,14.3558331]
[1746491694352,138.5,146.6,146.59,27.6358331]
[1746491695951,138.5,146.6,146.59,22.47291923]
[1746491697154,138.5,146.6,146.59,13.28]
[1746491698356,138.5,146.6,146.59,20.10174773]
[1746491699255,138.5,146.6,146.59,29.29466696]
[1746491700361,164.5,146.63,146.59,29.29466696]
[1746491700548,164.5,146.63,146.6,9.19291923]
[1746491701459,9.19291923,146.62,146.59,20.10174773]
[1746491703575,164.5,146.63,146.59,20.10174773]
[1746491703763,9.19291923,146.62,146.59,20.10174773]
[1746491705179,9.19291923,146.62,146.58,9.19291923]
[1746491705180,9.19291923,146.62,146.55,6.82360968]
[1746491705361,9.19291923,146.57,146.55,6.82360968]
[1746491705553,9.19291923,146.57,146.54,6.82399173]
[1746491706174,9.19291923,146.56,146.53,20.10443201]
[1746491706336,9.19291923,146.55,146.53,13.28]
[1746491706743,9.19291923,146.54,146.53,13.28]
[1746491708157,9.19291923,146.55,146.53,13.28]
[1746491708475,9.19291923,146.54,146.53,13.28]
[1746491709874,14.38073869,146.54,146.53,13.28]
[1746491710847,14.38073869,146.54,146.51,247.88]
[1746491713674,21.20482487,146.54,146.51,247.88]
[1746491715073,14.38073869,146.54,146.51,247.88]
[1746491717271,138.5,146.53,146.51,247.88]
[1746491717572,152.88073869,146.53,146.51,247.88]
[1746491720874,152.88073869,146.53,146.51,13.28]
[1746491721680,138.5,146.53,146.51,13.28]
[1746491724177,152.88073869,146.53,146.51,13.28]
[1746491724363,159.70528957,146.53,146.51,13.28]
[1746491729276,14.38073869,146.52,146.51,13.28]
[1746491729882,157.14964886,146.51,146.44,1.5525]
[1746491730177,26.0,146.49,146.48,13.28]
[1746491730379,59.03038755,146.49,146.45,13.28]
[1746491730577,138.5,146.48,146.45,13.28]
[1746491730760,152.88073869,146.48,146.45,13.28]
[1746491731879,147.71116199,146.48,146.45,13.28]
[1746491732176,154.53807075,146.48,146.45,13.28]
[1746491732380,147.71116199,146.47,146.45,13.28]
[1746491733474,138.5,146.47,146.45,13.28]
[1746491735370,152.8934854,146.47,146.45,13.28]
[1746491736277,197.68529583,146.46,146.45,13.28]
[1746491736484,138.5,146.45,146.41,13.28]
[1746491736681,14.3934854,146.44,146.41,13.28]
[1746491736889,14.3934854,146.42,146.37,13.28]
[1746491737080,18.64964886,146.43,146.4,14.3934854]
[1746491737377,138.5,146.42,146.39,14.3934854]
[1746491738059,138.5,146.42,146.4,14.3934854]
[1746491738260,152.8934854,146.42,146.38,6.83111303]
[1746491738484,138.5,146.42,146.39,14.3934854]
[1746491739791,138.5,146.42,146.39,21.22423709]
[1746491742088,138.5,146.42,146.4,14.3934854]
[1746491742888,138.5,146.42,146.39,14.3934854]
[1746491744688,138.5,146.42,146.39,21.22417658]
[1746491753005,138.5,146.42,146.41,14.3934854]
[1746491753306,138.5,146.47,146.41,14.3934854]
[1746491753506,138.5,146.46,146.43,14.3934854]
[1746491753691,138.5,146.46,146.43,9.21258733]
[1746491755601,147.71258733,146.46,146.42,29.34179603]
[1746491755785,152.89623927,146.46,146.42,34.52544797]
[1746491757307,138.5,146.46,146.43,21.22505282]
[1746491759005,138.5,146.46,146.44,14.39623927]
[1746491759806,138.5,146.46,146.44,21.22453312]
[1746491761103,138.5,146.46,146.44,6.82829385]
[1746491766114,138.5,146.46,146.44,14.39623927]
[1746491767818,138.5,146.46,146.44,21.22466138]
[1746491768803,138.5,146.46,146.45,14.39623927]
[1746491769196,6.3275,146.49,146.45,14.39623927]
[1746491769509,6.3275,146.49,146.46,14.39623927]
[1746491769907,6.3275,146.49,146.47,6.82733665]
[1746491770103,20.72373927,146.49,146.45,21.22430761]
[1746491770315,14.39623927,146.46,146.43,6.82920166]
[1746491770619,14.39623927,146.46,146.44,13.32]
[1746491772526,14.39623927,146.47,146.44,13.32]
[1746491777738,9.21302233,146.47,146.44,13.32]
[1746491779423,9.21302233,146.46,146.44,13.32]
[1746491780522,9.21302233,146.46,146.42,29.36258261]
[1746491781359,138.5,146.45,146.42,29.36258261]
[1746491782215,147.71302233,146.45,146.42,13.32]
[1746491782646,147.71302233,146.45,146.42,20.14966303]
[1746491782945,138.5,146.45,146.42,29.36268536]
[1746491783146,147.71302233,146.45,146.42,13.32]
[1746491784028,147.71302233,146.45,146.41,16.04299837]
[1746491784237,15.23282233,146.43,146.4,13.32]
[1746491788034,9.21302233,146.42,146.4,13.32]
[1746491789653,15.23282233,146.43,146.4,13.32]
[1746491790343,138.5,146.42,146.4,13.32]
[1746491795059,147.71302233,146.42,146.4,13.32]
[1746491799264,138.5,146.42,146.4,13.32]
[1746491799769,138.5,146.42,146.4,22.53302233]
[1746491799947,138.5,146.42,146.4,13.32]
[1746491800145,138.5,146.42,146.4,22.53302233]
[1746491808725,138.5,146.42,146.4,29.36358234]
[1746491808860,138.5,146.42,146.41,9.21302233]
[1746491809457,138.5,146.46,146.41,9.21302233]
[1746491809681,138.5,146.46,146.4,37.22706274]
[1746491809682,138.5,146.46,146.44,9.21302233]
[1746491811882,138.5,146.46,146.4,30.39650273]
[1746491812071,138.5,146.45,146.42,9.21302233]
[1746491814292,138.5,146.45,146.42,16.04266858]
[1746491815078,138.5,146.45,146.44,9.21302233]
[1746491815576,34.68877566,146.5,146.44,46.06511165]
[1746491815577,138.5,146.5,146.44,46.06511165]
[1746491815882,138.5,146.5,146.49,9.21302233]
[1746491817392,26.0,146.53,146.49,9.21302233]
[1746491817586,26.0,146.53,146.5,9.21302233]
[1746491817779,26.0,146.53,146.51,14.38004673]
[1746491817974,138.5,146.54,146.51,14.38004673]
[1746491818289,164.5,146.54,146.51,14.38004673]
[1746491819171,178.88004673,146.54,146.5,34.50565006]
[1746491819577,178.88004673,146.54,146.5,27.68004673]
[1746491820788,178.88004673,146.54,146.5,34.50582589]
[1746491822189,178.88004673,146.54,146.5,13.3]
[1746491822190,14.38004673,146.53,146.5,13.3]
[1746491829305,164.5,146.54,146.5,34.50595486]
[1746491829501,178.88004673,146.54,146.5,34.50595486]
[1746491831401,164.5,146.54,146.51,14.38004673]
[1746491832594,138.5,146.54,146.53,14.38004673]
[1746491833601,138.5,146.54,146.53,21.20458777]
[1746491836290,138.5,146.54,146.5,13.3]
[1746491836494,152.88004673,146.54,146.5,27.68004673]
[1746491836830,152.88004673,146.54,146.5,34.50583059]
[1746491837118,14.38004673,146.52,146.5,13.3]
[1746491837298,159.01904673,146.53,146.5,13.3]
[1746491839005,144.639,146.53,146.51,14.38004673]
[1746491839308,138.5,146.53,146.52,14.38004673]
[1746491839888,26.0,146.54,146.52,14.38004673]
[1746491840496,40.38004673,146.54,146.5,20.12579118]
[1746491840682,40.38004673,146.54,146.5,34.50583791]
[1746491841086,14.38004673,146.52,146.5,13.3]
[1746491841288,178.88004673,146.51,146.5,13.3]
[1746491841501,178.88004673,146.51,146.46,27.66004673]
[1746491841704,152.88004673,146.5,146.46,27.66004673]
[1746491842012,138.5,146.5,146.47,14.38004673]
[1746491842184,138.5,146.5,146.46,20.10777266]
[1746491842389,138.5,146.5,146.49,14.38004673]
[1746491843608,138.5,146.53,146.49,14.38004673]
[1746491843810,138.5,146.53,146.47,6.82733665]
[1746491844011,138.5,146.53,146.46,30.34931663]
[1746491844012,14.38004673,146.51,146.46,20.10770627]
[1746491844313,14.38004673,146.5,146.46,27.66004673]
[1746491845209,14.38004673,146.49,146.46,13.28]
[1746491845406,14.38004673,146.48,146.46,13.28]
[1746491846114,21.20645126,146.49,146.46,13.28]
[1746491846913,14.38004673,146.48,146.46,13.28]
[1746491848408,21.20710684,146.48,146.46,13.28]
[1746491849316,138.5,146.47,146.46,13.28]
[1746491849616,152.88004673,146.47,146.46,13.28]
[1746491849918,138.5,146.47,146.46,13.28]
[1746491850919,138.5,146.47,146.41,20.11013455]
[1746491851120,138.5,146.47,146.44,14.38004673]
[1746491853511,138.5,146.47,146.42,6.82952709]
[1746491853711,152.88004673,146.46,146.41,27.66004673]
[1746491854019,138.5,146.45,146.42,14.38004673]
[1746491855525,138.5,146.45,146.44,14.38004673]
[1746491855732,164.5,146.49,146.44,14.38004673]
[1746491855905,164.5,146.49,146.46,14.38004673]
[1746491856111,164.5,146.49,146.46,27.68004673]
[1746491857028,138.5,146.49,146.46,27.68004673]
[1746491857233,138.5,146.49,146.48,14.38004673]
[1746491857631,138.5,146.49,146.47,14.38004673]
[1746491858940,138.5,146.49,146.48,14.38004673]
[1746491860241,138.5,146.49,146.47,14.38004673]
[1746491861515,138.5,146.49,146.46,13.3]
[1746491861810,138.5,146.49,146.47,14.38004673]
[1746491862010,138.5,146.49,146.46,27.68004673]
[1746491862211,14.38004673,146.47,146.46,13.3]
[1746491862621,14.38004673,146.47,146.41,13.3]
[1746491862831,152.88004673,146.46,146.41,20.13008816]
[1746491863040,152.88004673,146.46,146.42,14.38004673]
[1746491863952,159.70792666,146.46,146.42,14.38004673]
[1746491864143,159.70792666,146.46,146.41,20.13008816]
[1746491864326,159.70792666,146.46,146.42,14.38004673]
[1746491864827,138.5,146.46,146.43,14.38004673]
[1746491865359,138.5,146.45,146.43,14.38004673]
[1746491874646,138.5,146.45,146.42,14.38004673]
[1746491876057,138.5,146.45,146.41,20.13008816]
[1746491876386,138.5,146.45,146.42,14.38004673]
[1746491880885,145.32830703,146.45,146.41,20.13008816]
[1746491881064,159.70835376,146.45,146.41,27.68004673]
[1746491882071,159.70835376,146.45,146.41,13.3]
[1746491882283,152.88004673,146.45,146.41,27.68004673]
[1746491883277,159.7084467,146.45,146.41,27.68004673]
[1746491885586,14.38004673,146.42,146.41,13.3]
[1746491886678,21.20926354,146.43,146.41,13.3]
[1746491886852,14.38004673,146.42,146.41,13.3]
[1746491887162,21.20926354,146.43,146.41,13.3]
[1746491887355,14.38004673,146.43,146.41,13.3]
[1746491888477,6.82891705,146.44,146.42,14.38004673]
[1746491888680,138.5,146.45,146.43,14.38004673]
[1746491888855,138.5,146.45,146.44,14.38004673]
[1746491890379,26.0,146.48,146.44,14.38004673]
[1746491890586,26.0,146.47,146.46,14.38004673]
[1746491891958,26.0,146.47,146.46,21.20784954]
[1746491892975,26.0,146.47,146.45,14.38004673]
[1746491893759,26.0,146.47,146.42,6.82966807]
[1746491894089,138.5,146.46,146.43,21.2092482]
[1746491895092,138.5,146.46,146.44,14.38004673]
[1746491895278,138.5,146.46,146.45,14.38004673]
[1746491895979,138.5,146.46,146.42,6.82966807]
[1746491896284,138.5,146.46,146.45,14.38004673]
[1746491898077,138.5,146.46,146.45,21.20831576]
[1746491900500,26.0,146.47,146.45,21.20831576]
[1746491903292,26.0,146.47,146.45,34.50831576]
[1746491903895,26.0,146.47,146.45,13.3]
[1746491904569,40.38004673,146.47,146.45,13.3]
[1746491904769,40.38004673,146.46,146.45,13.3]
[1746491906911,26.0,146.46,146.45,13.3]
[1746491907097,40.38004673,146.46,146.45,13.3]
[1746491911679,47.20784954,146.46,146.45,13.3]
[1746491912707,47.20784954,146.46,146.42,14.38004673]
[1746491912996,40.38004673,146.46,146.42,21.20966389]
[1746491914784,40.38004673,146.46,146.42,6.82961716]
[1746491915109,40.38004673,146.46,146.42,21.20966389]
[1746491916311,138.5,146.45,146.42,21.20966389]
[1746491918293,152.88004673,146.45,146.41,34.5101526]
[1746491921194,138.5,146.45,146.41,34.5101526]
[1746491922917,14.38004673,146.43,146.41,13.3]
[1746491924224,14.38004673,146.42,146.41,13.3]
[1746491932729,21.2097148,146.42,146.41,13.3]
[1746491938941,159.85187637,146.42,146.34,1.6149]
[1746491939226,159.85187637,146.42,146.35,13.3]
[1746491939227,14.38004673,146.38,146.35,13.3]
[1746491940206,14.38004673,146.37,146.35,13.3]
[1746491940407,14.38004673,146.36,146.35,13.3]
[1746491940607,6.83293474,146.35,146.33,0.5022723]
[1746491940809,159.71298147,146.35,146.33,0.5022723]
[1746491941031,152.88004673,146.35,146.33,0.5022723]
[1746491941338,138.5,146.35,146.33,0.5022723]
[1746491947135,138.5,146.35,146.33,14.88231903]
[1746491947335,138.5,146.35,146.33,21.71615267]
[1746491947640,138.5,146.35,146.33,14.88231903]
[1746491948240,138.5,146.35,146.33,21.71615258]
[1746491948535,138.5,146.35,146.34,14.38004673]
[1746491948737,138.5,146.39,146.34,14.38004673]
[1746491948917,138.5,146.39,146.37,14.38004673]
[1746491949117,138.5,146.39,146.36,21.21228503]
[1746491951540,14.38004673,146.38,146.34,6.83340166]
[1746491951725,152.88004673,146.39,146.35,14.38004673]
[1746491954139,152.88004673,146.39,146.36,6.83246788]
[1746491959446,152.88004673,146.39,146.36,20.17246788]
[1746491959645,138.5,146.39,146.37,14.38004673]
[1746491960050,138.5,146.39,146.36,20.17246788]
[1746491960235,138.5,146.39,146.36,34.55251461]
[1746491961254,138.5,146.39,146.36,20.17246788]
[1746491961550,138.5,146.39,146.36,34.55251461]
[1746491961753,138.5,146.39,146.37,14.38004673]
[1746491962752,138.5,146.39,146.38,6.83153436]
[1746491964452,138.5,146.39,146.37,14.38004673]
[1746491964453,152.88004673,146.39,146.36,13.34]
[1746491966558,138.5,146.39,146.37,14.38004673]
[1746491966857,138.5,146.39,146.36,20.17243964]
[1746491966858,14.38004673,146.43,146.38,14.38004673]
[1746491967051,138.5,146.44,146.36,37.25360935]
[1746491967052,138.5,146.44,146.4,14.38004673]
[1746491967251,138.5,146.44,146.41,27.72004673]
[1746491967453,152.88004673,146.44,146.41,13.34]
[1746491967837,147.71603313,146.44,146.41,13.34]
[1746491968253,9.21603313,146.42,146.41,13.34]
[1746491968561,16.0457012,146.42,146.41,13.34]
[1746491968753,16.0457012,146.42,146.37,20.17194818]
[1746491968953,9.21603313,146.4,146.37,20.17194818]
[1746491972169,147.71603313,146.41,146.37,29.38798131]
[1746491979277,138.5,146.41,146.38,16.04748686]
[1746491980075,147.71603313,146.41,146.38,16.04748686]
[1746491981472,147.71603313,146.41,146.38,9.21603313]
[1746491981977,147.71603313,146.41,146.38,16.04752517]
[1746491983973,147.71603313,146.41,146.38,9.21603313]
[1746491984181,147.71603313,146.41,146.37,29.38787402]
[1746491984876,147.71603313,146.41,146.37,20.17184089]
[1746491985064,147.71603313,146.41,146.37,29.38787402]
[1746491989364,138.5,146.41,146.38,9.21603313]
[1746491990182,138.5,146.41,146.37,20.17184089]
[1746491990481,138.5,146.41,146.38,9.21603313]
[1746491992464,138.5,146.41,146.38,16.04743836]
[1746491994782,138.5,146.41,146.38,6.83140523]
[1746491994967,147.71603313,146.41,146.37,29.38783879]
[1746491998484,138.5,146.41,146.38,9.21603313]
[1746491999485,138.5,146.41,146.39,6.83106769]
[1746492001790,138.5,146.41,146.39,13.32]
[1746492002781,147.71603313,146.41,146.39,13.32]
[1746492003374,9.21603313,146.4,146.39,13.32]
[1746492007197,6.1915,146.39,146.34,6.83340166]
[1746492007390,9.21603313,146.38,146.35,13.32]
[1746492008397,153.90753313,146.39,146.35,20.15284755]
[1746492009198,9.21603313,146.38,146.35,13.32]
[1746492009394,9.21603313,146.38,146.35,20.15292027]
[1746492010595,153.90753313,146.39,146.35,20.15292027]
[1746492010776,9.21603313,146.38,146.35,13.32]
[1746492011081,151.52259978,146.39,146.35,13.32]
[1746492011278,160.73863291,146.39,146.35,13.32]
[1746492012478,138.5,146.38,146.35,13.32]
[1746492012699,138.5,146.38,146.35,22.53603313]
[1746492012908,147.71603313,146.38,146.35,13.32]
[1746492013886,9.21603313,146.37,146.35,13.32]
[1746492014085,9.21603313,146.36,146.35,13.32]
[1746492014987,6.83293474,146.35,146.33,0.5022723]
[1746492015178,16.04896787,146.35,146.33,0.5022723]
[1746492015610,16.04865969,146.36,146.33,0.5022723]
[1746492018305,138.5,146.35,146.33,0.5022723]
[1746492020397,145.33293598,146.35,146.33,0.5022723]
[1746492022105,138.5,146.35,146.33,0.5022723]
[1746492024310,138.5,146.34,146.33,0.5022723]
[1746492026920,145.33340166,146.34,146.33,0.5022723]
[1746492027116,179.62284522,146.34,146.33,0.5022723]
[1746492027502,41.12284522,146.34,146.33,0.5022723]
[1746492035093,42.73834522,146.34,146.33,0.5022723]
[1746492035708,47.95352672,146.34,146.33,0.5022723]
[1746492037095,14.43121463,146.28,146.24,14.43121463]
[1746492037318,138.5,146.27,146.24,14.43121463]
[1746492037895,138.5,146.27,146.25,14.43121463]
[1746492039107,138.5,146.27,146.25,6.83756992]
[1746492039308,138.5,146.27,146.25,21.26878455]
[1746492040919,152.93121463,146.27,146.23,21.26958004]
[1746492041925,138.5,146.27,146.24,14.43121463]
[1746492042094,138.5,146.27,146.25,14.43121463]
[1746492042829,138.5,146.27,146.25,21.26854408]
[1746492046024,138.5,146.27,146.25,6.83732945]
[1746492049029,152.93121463,146.27,146.23,6.83854202]
[1746492049240,152.93121463,146.27,146.23,21.26975665]
[1746492049527,14.43121463,146.25,146.22,20.15886775]
[1746492049907,14.43121463,146.26,146.22,34.59008238]
[1746492050729,171.33672451,146.27,146.22,20.15886775]
[1746492050730,14.43121463,146.25,146.22,20.15886775]
[1746492051028,14.43121463,146.26,146.22,34.59008238]
[1746492051403,14.43121463,146.26,146.22,20.15886775]
[1746492051639,14.43121463,146.25,146.22,20.15886775]
[1746492051935,178.93121463,146.27,146.23,14.43121463]
[1746492052117,138.5,146.27,146.24,14.43121463]
[1746492052621,138.5,146.27,146.25,14.43121463]
[1746492052818,138.5,146.27,146.26,14.43121463]
[1746492053019,138.5,146.27,146.25,14.43121463]
[1746492053226,138.5,146.27,146.25,21.26846418]
[1746492053443,138.5,146.27,146.25,34.64846418]
[1746492057445,138.5,146.27,146.25,20.21724955]
[1746492057638,152.93121463,146.27,146.25,13.38]
[1746492061248,138.5,146.27,146.25,13.38]
[1746492061549,152.93121463,146.27,146.25,13.38]
[1746492063018,152.93121463,146.27,146.24,6.83806461]
[1746492064720,138.5,146.27,146.24,21.26927924]
[1746492065164,138.5,146.27,146.25,14.43121463]
[1746492065338,26.0,146.29,146.26,14.43121463]
[1746492065646,26.0,146.29,146.25,14.43121463]
[1746492066260,26.0,146.29,146.26,14.43121463]
[1746492066543,26.0,146.29,146.27,6.8366719]
[1746492066940,26.0,146.29,146.26,14.43121463]
[1746492066941,40.43121463,146.29,146.26,6.8369766]
[1746492068551,26.0,146.29,146.26,6.8369766]
[1746492068735,14.43121463,146.3,146.26,21.26819123]
[1746492069654,14.43121463,146.3,146.27,13.38]
[1746492070553,164.5,146.31,146.27,13.38]
[1746492070735,178.93121463,146.31,146.27,27.81121463]
[1746492071235,14.43121463,146.3,146.27,13.38]
[1746492073553,178.93121463,146.31,146.27,20.21665911]
[1746492073757,178.93121463,146.31,146.27,34.64787374]